bitfinex-derivatives/quotes_ETHF0:USTF0_20250421
["timestamp","ask_amount","ask_price","bid_price","bid_amount"]
[1745248493318,12.85254499,1624.8,1624.7,0.00921687]
[1745248494013,19.76149584,1624.8,1624.7,0.00921687]
[1745248494211,14.76149584,1624.8,1624.7,0.00921687]
[1745248494411,19.76149584,1624.8,1624.7,0.00921687]
[1745248495009,24.68424584,1624.8,1624.0,1.4772]
[1745248495219,24.68424584,1624.8,1624.0,9.3831]
[1745248495220,1.23118,1624.1,1624.0,9.3831]
[1745248495426,4.798,1624.1,1624.0,9.37611846]
[1745248495610,6.02918,1624.1,1624.0,9.37611846]
[1745248498004,4.798,1624.1,1624.0,9.37611846]
[1745248498208,4.798,1624.1,1624.0,10.60736846]
[1745248498404,4.798,1624.1,1624.0,15.60736846]
[1745248499019,2.68891,1624.4,1624.2,1.23108]
[1745248499209,2.96313,1624.5,1624.4,0.00698154]
[1745248499415,7.76113,1624.5,1624.4,0.00698154]
[1745248499610,7.76113,1624.5,1624.3,3.02702]
[1745248499611,7.75414846,1624.5,1624.3,1.796]
[1745248499821,98.32765,1624.6,1624.4,3.02695]
[1745248500114,4.798,1624.5,1624.2,7.6741]
[1745248500319,1.23102,1624.4,1624.3,1.796]
[1745248501021,6.02893,1624.5,1624.3,3.02702]
[1745248501220,1.23095,1624.4,1624.3,1.796]
[1745248502109,4.798,1624.5,1624.2,6.146]
[1745248502316,4.43882,1624.3,1624.2,6.146]
[1745248502614,1.23102,1624.3,1624.2,6.146]
[1745248502816,93.889,1624.6,1624.3,1.23102]
[1745248503119,99.91781,1624.6,1624.4,7.62089]
[1745248503316,98.687,1624.6,1624.5,1.6987]
[1745248503513,99.9178,1624.6,1624.5,1.6987]
[1745248504124,99.9178,1624.6,1624.5,7.8447]
[1745248504417,103.22563181,1624.6,1624.5,6.146]
[1745248504612,104.96323181,1624.6,1624.5,6.146]
[1745248505217,1.23095,1624.4,1624.3,1.6987]
[1745248505820,1.23102,1624.3,1624.2,1.4086]
[1745248506024,1.23118,1624.1,1624.0,1.7509]
[1745248506217,6.02118,1624.1,1624.0,1.74391846]
[1745248507116,1.23111,1624.2,1624.0,9.12116846]
[1745248507313,4.79,1624.1,1624.0,12.32896846]
[1745248507508,4.79,1624.1,1624.0,10.58505]
[1745248507919,4.79,1624.1,1624.0,15.58505]
[1745248508218,99.96223607,1624.6,1624.1,3.07786]
[1745248508422,4.79,1624.5,1624.2,3.2078]
[1745248508722,6.02093,1624.5,1624.3,2.74262]
[1745248508910,1.23095,1624.4,1624.3,1.5116]
[1745248509114,6.02092,1624.5,1624.3,2.7426]
[1745248509416,6.02092,1624.5,1624.4,1.7529]
[1745248509721,4.79,1624.5,1624.4,2.98385]
[1745248509914,6.07323607,1624.6,1624.4,4.9607]
[1745248510222,10.15560082,1624.6,1624.5,2.98377]
[1745248510425,11.38640082,1624.6,1624.5,1.7529]
[1745248510716,14.59420082,1624.6,1624.5,1.7529]
[1745248511017,10.15560082,1624.6,1624.5,1.7529]
[1745248511219,10.15560082,1624.6,1624.5,9.12977]
[1745248511523,10.15560082,1624.6,1624.5,7.8989]
[1745248511724,10.15560082,1624.6,1624.5,9.12977]
[1745248512317,11.38640082,1624.6,1624.5,7.8989]
[1745248512724,10.15560082,1624.6,1624.5,9.12977]
[1745248512924,10.15560082,1624.6,1624.5,7.8989]
[1745248513123,11.38640082,1624.6,1624.5,7.8989]
[1745248513424,10.15560082,1624.6,1624.5,9.12977]
[1745248513625,9.25291312,1624.6,1624.5,7.8989]
[1745248514323,8.02211312,1624.6,1624.5,7.8989]
[1745248514630,9.25291312,1624.6,1624.5,7.8989]
[1745248514822,12.81111312,1624.6,1624.5,9.12977]
[1745248515626,8.02211312,1624.6,1624.5,9.12977]
[1745248515829,8.02211312,1624.6,1624.5,14.12977]
[1745248516324,14.94460082,1624.7,1624.5,14.12977]
[1745248516325,2.65980394,1624.7,1624.6,1.2308]
[1745248516513,2.65980394,1624.7,1624.6,10.8934]
[1745248517714,2.65980394,1624.9,1624.8,1.23064]
[1745248517920,3.89037394,1624.9,1624.8,4.43844]
[1745248518423,2.65980394,1624.9,1624.8,4.43844]
[1745248519018,3.89037394,1624.9,1624.8,4.43844]
[1745248519218,3.89037394,1624.9,1624.8,3.2078]
[1745248519422,1.23064,1624.8,1624.7,9.3538]
[1745248519622,3.00284,1624.8,1624.7,6.146]
[1745248520021,3.10275551,1624.8,1624.7,7.37672]
[1745248520222,3.00284,1624.8,1624.7,7.37672]
[1745248521019,1.7722,1624.8,1624.7,7.37672]
[1745248521226,3.00284,1624.8,1624.7,7.37672]
[1745248521428,1.7722,1624.8,1624.7,7.37672]
[1745248522426,7.44880394,1624.9,1624.8,1.23064]
[1745248522618,7.44880394,1624.9,1624.8,2.86594]
[1745248522818,2.65980394,1624.9,1624.8,4.30334]
[1745248523230,2.65980394,1624.9,1624.8,10.18734]
[1745248524635,3.94e-06,1624.9,1624.8,15.18734]
[1745248524821,0.00921687,1625.0,1624.9,1.23057]
[1745248525023,0.00921687,1625.0,1624.9,6.13167]
[1745248526117,0.00921687,1625.0,1624.9,12.27767]
[1745248526521,0.00921687,1625.0,1624.9,10.58437]
[1745248527023,1.23970687,1625.0,1624.9,10.58437]
[1745248527333,1.23970687,1625.0,1624.9,9.3538]
[1745248527623,1.46141687,1625.0,1624.9,10.58437]
[1745248527823,4.79721687,1625.0,1624.9,12.25727]
[1745248528029,0.00921687,1625.0,1624.9,12.25727]
[1745248529534,6.87e-06,1625.0,1624.9,17.25727]
[1745248529933,6.87e-06,1625.0,1624.9,12.25727]
[1745248533338,6.87e-06,1625.0,1624.9,10.58437]
[1745248533535,6.87e-06,1625.0,1624.9,12.21297]
[1745248533737,6.87e-06,1625.0,1624.9,10.58437]
[1745248534535,1.70240687,1625.0,1624.9,10.58437]
[1745248535133,1.70240687,1625.0,1624.9,12.21297]
[1745248535742,6.87e-06,1625.0,1624.9,12.21297]
[1745248536843,1.23049687,1625.0,1624.9,10.58437]
[1745248537138,6.87e-06,1625.0,1624.9,7.37657]
[1745248537339,6.01149687,1625.0,1624.9,7.37657]
[1745248537737,4.78100687,1625.0,1624.9,7.37657]
[1745248538137,6.42740687,1625.0,1624.9,7.37657]
[1745248539744,6.42740687,1625.0,1624.9,9.15727]
[1745248540242,6.87e-06,1625.0,1624.9,9.15727]
[1745248541547,1.62330687,1625.0,1624.9,7.37657]
[1745248543342,1.62330687,1625.0,1624.9,9.06397]
[1745248543845,6.87e-06,1625.0,1624.9,9.06397]
[1745248544352,6.87e-06,1625.0,1624.9,14.06397]
[1745248544549,6.87e-06,1625.0,1624.9,19.94797]
[1745248544749,6.87e-06,1625.0,1624.9,24.72797]
[1745248548055,6.87e-06,1625.0,1624.9,19.72797]
[1745248548369,6.87e-06,1625.0,1624.9,24.72797]
[1745248548659,6.87e-06,1625.0,1624.9,19.72797]
[1745248548974,6.87e-06,1625.0,1624.9,14.94797]
[1745248551162,6.87e-06,1625.0,1624.9,19.94797]
[1745248551567,6.87e-06,1625.0,1624.9,14.94797]
[1745248552159,6.87e-06,1625.0,1624.9,13.26057]
[1745248552667,6.87e-06,1625.0,1624.9,7.37657]
[1745248553063,6.87e-06,1625.0,1624.9,9.03517]
[1745248553768,6.87e-06,1625.0,1624.9,12.37657]
[1745248553969,6.87e-06,1625.0,1624.9,14.15067]
[1745248554167,6.87e-06,1625.0,1624.9,7.37657]
[1745248554656,6.87e-06,1625.0,1624.9,9.15067]
[1745248556271,14.00263241,1625.7,1624.9,12.9201]
[1745248556472,14.55943241,1625.5,1625.4,4.43799]
[1745248556970,20.78954241,1625.5,1625.4,4.43799]
[1745248557274,20.78954241,1625.5,1625.4,10.58399]
[1745248557463,20.78954241,1625.5,1625.4,9.3538]
[1745248557658,20.78954241,1625.5,1625.4,10.58399]
[1745248557871,20.78954241,1625.5,1625.4,9.3538]
[1745248558068,20.8895393,1625.5,1625.4,9.3538]
[1745248558266,1.23027,1625.3,1625.2,1.23028]
[1745248558575,25.9426093,1625.5,1625.1,3.2078]
[1745248558576,8.01863241,1625.5,1625.1,3.2078]
[1745248558769,6.58704241,1625.5,1625.4,1.23019]
[1745248558962,8.29584241,1625.5,1625.4,1.23019]
[1745248559158,1.7088,1625.5,1625.4,7.37619]
[1745248559566,8.2356,1625.5,1625.4,7.37619]
[1745248559867,3.2356,1625.5,1625.4,7.37619]
[1745248560265,8.2356,1625.5,1625.4,7.37619]
[1745248560471,9.46571,1625.5,1625.4,9.3538]
[1745248560663,12.7735182,1625.5,1625.4,3.708]
[1745248561068,19.22473158,1625.5,1625.4,1.0033]
[1745248561274,1.23042,1625.1,1624.9,3.2078]
[1745248561474,6.01053,1625.0,1624.8,1.23981999]
[1745248561671,6.2519,1624.9,1624.8,1.23984999]
[1745248562176,6.2519,1624.9,1624.8,3.03984999]
[1745248562772,3.2078,1625.3,1625.1,1.23035]
[1745248562773,1.23029,1625.3,1625.1,1.23035]
[1745248563077,14.84041752,1625.2,1625.1,1.23035]
[1745248563277,14.94042768,1625.2,1625.1,1.23035]
[1745248563481,19.84041752,1625.2,1625.1,1.23035]
[1745248563670,21.07075752,1625.2,1625.0,1.23043]
[1745248563870,16.07077752,1625.2,1625.0,1.23044]
[1745248564175,16.07077752,1625.2,1625.0,7.37644]
[1745248564478,7.946,1625.1,1625.0,7.37644]
[1745248564677,7.946,1625.1,1625.0,12.27394]
[1745248564976,7.946,1625.1,1625.0,10.58424]
[1745248566869,7.946,1625.1,1625.0,7.37644]
[1745248567069,7.946,1625.1,1625.0,10.58424]
[1745248568080,10.06041752,1625.3,1625.2,1.23034]
[1745248568280,14.83441752,1625.3,1625.2,4.43814]
[1745248568780,11.85351752,1625.3,1625.2,4.43814]
[1745248569084,1.23042,1625.1,1625.0,12.03]
[1745248569379,4.774,1625.1,1625.0,7.11449]
[1745248569773,6.2537,1625.4,1625.1,1.23039]
[1745248569974,1.23034,1625.2,1625.1,3.2078]
[1745248570779,1.23034,1625.2,1625.1,4.43822]
[1745248571681,5.0,1625.2,1625.0,12.03]
[1745248571884,1.23057,1624.9,1624.8,0.00920999]
[1745248572270,3.2618,1625.0,1624.9,1.23057]
[1745248572481,4.49232,1625.0,1624.8,1.66460999]
[1745248572782,4.49229,1625.0,1624.9,1.23057]
[1745248572984,3.2618,1625.0,1624.9,1.23057]
[1745248573176,3.2618,1625.0,1624.9,7.37657]
[1745248573679,4.49229,1625.0,1624.9,7.37657]
[1745248574378,3.2618,1625.0,1624.9,7.37657]
[1745248574790,6.5656,1625.0,1624.9,7.37657]
[1745248575082,4.774,1625.0,1624.9,7.37657]
[1745248576083,6.5269,1625.0,1624.9,7.37657]
[1745248577686,7.75739,1625.0,1624.9,6.146]
[1745248577891,7.75739,1625.0,1624.9,7.37657]
[1745248578284,7.75739,1625.0,1624.9,6.146]
[1745248578585,7.75739,1625.0,1624.9,7.37657]
[1745248578779,7.75739,1625.0,1624.9,6.146]
[1745248579183,7.75739,1625.0,1624.9,7.37657]
[1745248580384,7.75739,1625.0,1624.9,6.146]
[1745248580987,6.00449,1625.0,1624.9,7.37657]
[1745248581189,7.71619,1625.0,1624.9,7.37657]
[1745248581487,4.774,1625.0,1624.9,7.37657]
[1745248581687,6.00449,1625.0,1624.9,7.37657]
[1745248581987,4.774,1625.0,1624.9,9.00927]
[1745248582186,4.774,1625.0,1624.9,12.21707]
[1745248583385,10.06895337,1625.1,1625.0,1.23049]
[1745248583582,0.20679338,1625.1,1625.0,10.20979]
[1745248583782,0.20679338,1625.1,1625.0,15.20979]
[1745248584189,33.06306573,1625.5,1625.4,1.23019]
[1745248584389,34.29317573,1625.5,1625.4,1.23019]
[1745248584580,35.96317573,1625.5,1625.4,1.23019]
[1745248584782,1.23019,1625.4,1625.3,2.91659]
[1745248584983,2.90019,1625.4,1625.3,2.91659]
[1745248585384,1.23027,1625.3,1625.2,10.58407]
[1745248585583,2.90027,1625.3,1625.2,9.3538]
[1745248585783,1.23034,1625.2,1625.1,1.2304]
[1745248585986,1.23042,1625.1,1625.0,4.43824]
[1745248586295,1.23042,1625.1,1625.0,10.58424]
[1745248586785,1.23042,1625.1,1625.0,10.58422]
[1745248587186,1.23042,1625.1,1625.0,12.21942]
[1745248587688,7.67441,1625.2,1625.1,1.23042]
[1745248587882,1.23042,1625.1,1625.0,6.146]
[1745248588084,1.23056,1625.0,1624.8,3.21700999]
[1745248588292,6.5383,1624.9,1624.8,4.44764999]
[1745248588488,7.76887,1624.9,1624.8,0.00920999]
[1745248588792,12.76887,1624.9,1624.8,0.00920999]
[1745248589886,12.86894174,1624.9,1624.8,0.00920999]
[1745248590092,7.8689447,1624.9,1624.8,0.00920999]
[1745248590391,7.76887,1624.9,1624.8,0.00920999]
[1745248590589,7.86895356,1624.9,1624.8,1.63900999]
[1745248590784,7.76887,1624.9,1624.8,1.63900999]
[1745248591192,7.86893772,1624.9,1624.8,1.63900999]
[1745248591594,7.86893772,1624.9,1624.8,0.00920999]
[1745248591897,7.86898412,1624.9,1624.8,0.00920999]
[1745248592095,6.63841412,1624.9,1624.8,1.23984999]
[1745248592397,12.3,1625.3,1624.8,14.37003999]
[1745248592398,4.774,1625.3,1624.8,14.37003999]
[1745248592588,6.4907,1625.3,1625.2,1.23028]
[1745248592787,4.774,1625.3,1625.2,4.43808]
[1745248593193,4.774,1625.3,1625.2,10.58408]
[1745248594096,4.774,1625.3,1625.2,12.27238]
[1745248594493,6.00511,1625.5,1625.4,1.23019]
[1745248594691,7.68081,1625.5,1625.4,1.23019]
[1745248594895,7.78116975,1625.5,1625.3,2.91851]
[1745248595091,7.68088,1625.5,1625.4,7.37619]
[1745248595296,7.78117386,1625.5,1625.4,9.06449]
[1745248595490,7.68088,1625.5,1625.4,7.8343]
[1745248596001,7.78122116,1625.5,1625.4,7.8343]
[1745248596295,0.00921687,1625.6,1625.4,2.91849]
[1745248596599,4.78321687,1625.6,1625.5,2.90911]
[1745248597295,4.78321687,1625.6,1625.5,9.05511]
[1745248597894,12.14743555,1626.0,1625.9,1.22981]
[1745248598096,18.24560687,1626.0,1625.9,1.22981]
[1745248598297,17.01586687,1626.0,1625.9,1.22981]
[1745248598499,17.01586687,1626.0,1625.9,1.679]
[1745248598500,12.14743555,1626.0,1625.9,1.679]
[1745248598700,16.91543555,1626.0,1625.9,2.90881]
[1745248599098,16.91543555,1626.0,1625.9,9.05481]
[1745248599405,6.01065241,1626.0,1625.9,14.05481]
[1745248599702,6.01065241,1626.0,1625.9,9.05481]
[1745248600099,6.01065241,1626.0,1625.9,7.825]
[1745248600397,8.98109241,1626.0,1625.9,7.825]
[1745248600597,9.08149637,1626.0,1625.9,7.825]
[1745248601198,9.08149637,1626.0,1625.9,1.679]
[1745248601804,3.07084396,1626.0,1625.9,1.679]
[1745248602402,1.84110396,1626.0,1625.9,1.679]
[1745248602698,3.07084396,1626.0,1625.9,1.679]
[1745248602902,1.8411763,1626.0,1625.9,1.679]
[1745248603202,3.0709163,1626.0,1625.9,1.679]
[1745248603409,3.0709763,1626.0,1625.8,3.21701687]
[1745248603604,6.4219,1625.9,1625.8,3.21701687]
[1745248603905,6.4219,1625.9,1625.8,4.44690687]
[1745248604104,6.4219,1625.9,1625.8,6.13020687]
[1745248604699,6.4219,1625.9,1625.8,2.92240687]
[1745248604898,11.5224016,1625.9,1625.8,0.00921687]
[1745248605097,18.7362116,1625.9,1625.8,0.00921687]
[1745248605299,1.23,1625.7,1625.4,1.23016]
[1745248605598,1.23,1625.7,1625.5,1.23011]
[1745248605599,7.91700876,1625.6,1625.5,1.23011]
[1745248605797,9.54580876,1625.6,1625.5,1.23011]
[1745248606709,8.00720876,1625.6,1625.5,1.23011]
[1745248606915,4.86750876,1625.6,1625.5,1.23011]
[1745248607205,3.21701687,1626.1,1626.0,1.22974]
[1745248607397,10.94312611,1626.1,1625.8,3.2078]
[1745248607708,0.10061924,1626.0,1625.9,2.87278]
[1745248607897,1.72941924,1626.0,1625.9,2.87278]
[1745248608100,1.72941924,1626.0,1625.9,9.01878]
[1745248609104,1.72940672,1626.0,1625.9,7.789]
[1745248609712,2.95914672,1626.0,1625.9,7.789]
[1745248610104,1.72940672,1626.0,1625.9,2.87281]
[1745248610511,2.95914672,1626.0,1625.9,1.643]
[1745248610714,2.95931936,1626.0,1625.9,2.87281]
[1745248611007,2.95931936,1626.0,1625.9,1.643]
[1745248611208,2.95931936,1626.0,1625.9,7.789]
[1745248612005,9.21369687,1626.1,1625.9,7.789]
[1745248612309,9.21369687,1626.1,1626.0,1.6373]
[1745248612608,9.31453363,1626.1,1626.0,1.6373]
[1745248612806,11.11483363,1626.1,1626.0,1.6373]
[1745248613205,9.31453363,1626.1,1626.0,1.6373]
[1745248613407,8.08485363,1626.1,1626.0,2.86704]
[1745248613801,8.08485363,1626.1,1626.0,6.07484]
[1745248613802,4.77621687,1626.1,1626.0,6.07484]
[1745248614203,4.77621687,1626.1,1626.0,12.22084]
[1745248615010,0.00921687,1626.1,1626.0,12.22084]
[1745248616100,4.7464,1626.5,1626.1,3.07399]
[1745248616305,4.86691583,1626.4,1626.3,1.22951]
[1745248616611,6.09634583,1626.4,1626.3,4.41311]
[1745248616805,4.86691583,1626.4,1626.3,4.41311]
[1745248617005,6.09634583,1626.4,1626.3,4.41311]
[1745248618208,4.86691583,1626.4,1626.3,4.41311]
[1745248618516,6.09634583,1626.4,1626.3,3.1836]
[1745248619107,6.09634583,1626.4,1626.3,4.41311]
[1745248619306,4.86691583,1626.4,1626.3,7.62091]
[1745248620314,4.86703074,1626.4,1626.3,7.62091]
[1745248621320,5.99543,1626.4,1626.3,7.62091]
[1745248621620,6.51979839,1626.4,1626.3,7.62091]
[1745248621914,4.86699839,1626.4,1626.3,4.41311]
[1745248622317,6.09642839,1626.4,1626.3,4.41311]
[1745248622506,4.86699839,1626.4,1626.3,4.41311]
[1745248622708,0.10099839,1626.4,1626.3,4.41311]
[1745248622908,6.87e-06,1626.5,1626.4,1.22943]
[1745248623222,6.87e-06,1626.5,1626.4,18.17393]
[1745248623410,6.87e-06,1626.5,1626.4,23.17393]
[1745248623609,6.87e-06,1626.5,1626.4,18.17393]
[1745248626119,6.87e-06,1626.5,1626.4,23.17393]
[1745248626518,113.15243018,1627.3,1626.4,23.17393]
[1745248626519,4.765,1627.4,1626.4,26.7095]
[1745248626719,6.5039,1627.4,1627.3,1.22875]
[1745248626912,4.765,1627.4,1627.3,1.22875]
[1745248627117,4.759,1627.6,1627.5,1.2286]
[1745248627317,4.8597667,1627.6,1627.5,1.2286]
[1745248627614,4.759,1627.6,1627.5,2.8833]
[1745248628216,12.14939925,1627.7,1627.6,1.22853]
[1745248628422,13.37784925,1627.7,1627.6,1.6547]
[1745248628618,15.21740183,1627.7,1627.6,1.22853]
[1745248628819,13.98895183,1627.7,1627.6,1.22853]
[1745248629018,13.98895183,1627.7,1627.6,6.09103]
[1745248629214,13.98895204,1627.7,1627.6,6.09103]
[1745248629416,13.88829925,1627.7,1627.6,6.09103]
[1745248629826,12.25003932,1627.7,1627.6,6.09103]
[1745248630020,12.14939925,1627.7,1627.6,6.09103]
[1745248630917,0.00921687,1627.7,1627.6,6.09103]
[1745248632616,0.00921687,1627.7,1627.6,7.59933]
[1745248633317,6.87e-06,1627.7,1627.6,18.48333]
[1745248634118,6.87e-06,1627.7,1627.6,23.24033]
[1745248634424,6.87e-06,1627.7,1627.6,23.73761167]
[1745248635417,6.87e-06,1627.7,1627.6,24.20046422]
[1745248636520,6.87e-06,1627.7,1627.6,13.48333]
[1745248636721,1.22845687,1627.7,1627.6,1.6547]
[1745248637025,1.22851687,1627.7,1627.6,1.22853]
[1745248637219,5.98451687,1627.7,1627.6,1.22853]
[1745248637625,7.78201687,1627.7,1627.6,1.6956]
[1745248637818,1.22853,1627.6,1627.5,4.43634]
[1745248638025,1.7975,1627.6,1627.5,4.4364]
[1745248638223,3.02603,1627.6,1627.5,4.4364]
[1745248638929,3.02603,1627.6,1627.4,1.70481687]
[1745248638930,1.2286,1627.5,1627.4,0.00921687]
[1745248639134,2.9544,1627.5,1627.4,1.23789687]
[1745248639336,1.7258,1627.5,1627.4,1.23789687]
[1745248639522,7.9544,1627.5,1627.4,0.00921687]
[1745248639931,2.9544,1627.5,1627.4,0.00921687]
[1745248640332,11.1622,1627.5,1627.4,0.00921687]
[1745248640629,11.26267094,1627.5,1627.4,0.00921687]
[1745248642221,5.984,1627.6,1627.4,0.00921687]
[1745248642427,6.40760687,1627.7,1627.6,1.22853]
[1745248642926,6.40760687,1627.7,1627.6,3.01113]
[1745248643132,7.63605687,1627.7,1627.5,4.43634]
[1745248643440,1.6516,1627.6,1627.5,4.43634]
[1745248643936,2.88013,1627.6,1627.5,3.2078]
[1745248644133,1.6516,1627.6,1627.5,4.4364]
[1745248644336,1.6516,1627.6,1627.5,6.219]
[1745248644835,4.75600687,1627.7,1627.6,1.22853]
[1745248645131,6.87e-06,1627.7,1627.6,3.02163]
[1745248645433,6.87e-06,1627.7,1627.6,13.90563]
[1745248646731,6.87e-06,1627.7,1627.6,8.90563]
[1745248647429,6.87e-06,1627.7,1627.6,13.90563]
[1745248647628,6.87e-06,1627.7,1627.6,8.90563]
[1745248648634,1.22853,1627.6,1627.5,10.58235]
[1745248648832,2.85613,1627.6,1627.5,9.3538]
[1745248649346,4.31743,1627.6,1627.5,3.2078]
[1745248649539,1.6276,1627.6,1627.5,4.4364]
[1745248649837,4.75500687,1627.7,1627.6,1.22853]
[1745248650026,6.87e-06,1627.7,1627.6,2.93183]
[1745248650232,6.87e-06,1627.7,1627.6,8.81583]
[1745248650834,6.87e-06,1627.7,1627.6,13.81583]
[1745248651034,6.87e-06,1627.7,1627.6,8.81583]
[1745248651232,6.87e-06,1627.7,1627.6,13.81583]
[1745248652434,6.87e-06,1627.7,1627.6,2.93183]
[1745248652836,7.91435687,1627.7,1627.6,1.22853]
[1745248653136,1.22853,1627.6,1627.5,1.22854]
[1745248653339,2.91443,1627.6,1627.5,1.22854]
[1745248653934,7.91443,1627.6,1627.5,1.22854]
[1745248654240,6.6859,1627.6,1627.5,1.22854]
[1745248654442,1.6859,1627.6,1627.5,1.22854]
[1745248654640,6.29880687,1627.7,1627.6,1.22853]
[1745248654937,4.77030687,1627.7,1627.6,1.22853]
[1745248655442,4.77030687,1627.7,1627.6,2.98453]
[1745248655948,6.87e-06,1627.7,1627.6,2.98453]
[1745248656440,6.87e-06,1627.7,1627.6,13.86853]
[1745248656644,6.87e-06,1627.7,1627.6,8.86853]
[1745248659646,6.87e-06,1627.7,1627.6,2.98453]
[1745248659839,1.78520687,1627.7,1627.6,2.98453]
[1745248660341,6.87e-06,1627.7,1627.6,2.98453]
[1745248660643,1.78520687,1627.7,1627.6,1.22853]
[1745248662046,6.87e-06,1627.7,1627.6,2.97413]
[1745248662250,6.87e-06,1627.7,1627.6,4.48323]
[1745248669850,6.87e-06,1627.7,1627.6,1.22853]
[1745248670148,1.75720687,1627.7,1627.6,1.22853]
[1745248670450,1.75720687,1627.7,1627.6,2.95123]
[1745248671252,6.87e-06,1627.7,1627.6,2.95123]
[1745248672453,6.87e-06,1627.7,1627.6,7.95123]
[1745248672649,0.10082445,1628.2,1628.1,1.22815]
[1745248672851,3.286,1628.4,1628.3,1.228]
[1745248673057,1.22805,1628.3,1628.2,1.22802]
[1745248673252,1.32887575,1628.3,1628.2,1.22802]
[1745248673550,6.32887575,1628.3,1628.2,1.22802]
[1745248673753,1.5553,1628.4,1628.3,1.228]
[1745248673955,1.66533498,1628.4,1628.3,1.228]
[1745248674253,0.11003498,1628.4,1628.3,1.228]
[1745248674751,0.00921687,1628.4,1628.3,1.228]
[1745248674953,0.00921687,1628.4,1628.3,2.9208]
[1745248675257,0.00921687,1628.4,1628.3,6.1286]
[1745248677655,6.87e-06,1628.4,1628.3,11.1286]
[1745248678947,6.87e-06,1628.4,1628.3,6.1286]
[1745248681759,6.87e-06,1628.4,1628.3,12.0126]
[1745248682054,6.87e-06,1628.4,1628.3,17.0126]
[1745248682353,13.73918238,1629.0,1628.9,1.22755]
[1745248682354,10.72312238,1629.0,1628.9,1.22755]
[1745248682558,9.49064238,1629.2,1629.1,1.2274]
[1745248682756,9.59160618,1629.2,1629.1,4.4352]
[1745248682946,15.81892618,1629.2,1629.1,3.2078]
[1745248683152,14.59160618,1629.2,1629.1,1.2274]
[1745248683357,9.59160618,1629.2,1629.1,4.4352]
[1745248683559,9.49064238,1629.2,1629.1,4.4352]
[1745248683855,9.49064238,1629.2,1629.1,6.1475]
[1745248686153,9.49064238,1629.2,1629.1,4.4352]
[1745248686353,1.2274,1629.1,1629.0,0.00921687]
[1745248686652,2.86678682,1629.1,1629.0,0.00921687]
[1745248686961,7.86678682,1629.1,1629.0,0.00921687]
[1745248689257,1.2277,1628.7,1628.6,3.2078]
[1745248689455,1.22777,1628.6,1628.4,4.43567]
[1745248689657,3.0365,1628.5,1628.4,4.43567]
[1745248690056,4.741,1628.8,1628.7,1.2277]
[1745248690262,4.84186585,1628.8,1628.7,1.2277]
[1745248690458,4.84186585,1628.8,1628.6,1.23696687]
[1745248690660,1.32856585,1628.7,1628.6,0.00921687]
[1745248690861,1.32854342,1628.7,1628.6,0.00921687]
[1745248691060,6.32854342,1628.7,1628.6,0.00921687]
[1745248692163,0.10084342,1628.7,1628.6,1.23698687]
[1745248692363,4.741,1628.8,1628.7,1.2277]
[1745248692552,4.84182846,1628.8,1628.7,1.2277]
[1745248692957,6.06944846,1628.8,1628.6,2.87923687]
[1745248693267,0.10082846,1628.7,1628.6,2.87923687]
[1745248693563,1.6717,1628.8,1628.7,1.2277]
[1745248693759,3.00010587,1628.8,1628.7,1.2277]
[1745248694068,1.77248587,1628.8,1628.6,1.65151687]
[1745248694360,9.1918,1629.2,1628.7,3.06921]
[1745248694567,1.6717,1629.2,1629.1,1.2274]
[1745248694768,0.00921687,1629.3,1629.2,1.22732]
[1745248694968,0.00921687,1629.3,1629.2,4.43512]
[1745248695260,0.00921687,1629.3,1629.2,10.58112]
[1745248695857,0.00921687,1629.3,1629.2,13.99172]
[1745248696168,5.96787,1629.8,1629.7,1.22694]
[1745248696361,6.06867334,1629.8,1629.7,1.22694]
[1745248696868,4.84180334,1629.8,1629.7,1.22694]
[1745248697470,6.59600334,1629.8,1629.7,1.22694]
[1745248698661,6.59600334,1629.8,1629.6,2.92977687]
[1745248698861,0.00921687,1629.9,1629.8,1.22687]
[1745248700263,6.88e-06,1629.9,1629.8,1.22687]
[1745248701369,10.83605759,1630.3,1630.2,1.22657]
[1745248701568,15.21497832,1630.5,1630.2,8.2078]
[1745248701869,0.30160217,1630.5,1630.4,4.43422]
[1745248702066,2.17e-06,1630.5,1630.4,20.31922]
[1745248702373,3.2078,1631.0,1630.9,1.22604]
[1745248702668,1.6598,1631.0,1630.9,1.22604]
[1745248702864,9.96852503,1631.0,1630.9,1.22604]
[1745248703064,0.0061446,1631.1,1631.0,1.22597]
[1745248703370,0.0061446,1631.1,1631.0,4.43377]
[1745248703771,4.6e-06,1631.1,1631.0,4.43377]
[1745248705670,4.6e-06,1631.1,1631.0,6.21277]
[1745248706074,6.1460046,1631.1,1631.0,6.21277]
[1745248706275,4.8132246,1631.1,1631.0,6.21277]
[1745248706473,4.6e-06,1631.1,1631.0,11.21277]
[1745248706677,16.27685557,1631.4,1631.3,1.22574]
[1745248706878,14.88689557,1631.4,1631.3,4.43354]
[1745248707071,13.35298557,1631.4,1631.3,4.43354]
[1745248707273,6.146,1631.6,1631.5,1.22559]
[1745248707665,6.146,1631.6,1631.5,0.80223914]
[1745248708279,1.84374,1631.6,1631.5,9.01003914]
[1745248708492,1e-05,1631.6,1631.5,9.01003914]
[1745248708700,1e-05,1631.6,1631.5,5.64563914]
[1745248709197,1e-05,1631.6,1631.5,2.43783914]
[1745248709399,1e-05,1631.6,1631.5,5.64563914]
[1745248712399,1e-05,1631.6,1631.5,10.64563914]
[1745248712592,1e-05,1631.6,1631.5,5.64563914]
[1745248712991,1e-05,1631.6,1631.5,5.51334728]
[1745248715199,0.0144,1631.7,1631.6,1.22552]
[1745248715608,4.735,1632.0,1631.9,1.22529]
[1745248715903,6.146,1632.1,1632.0,1.22522]
[1745248716296,6.146,1632.1,1631.9,3.2078]
[1745248716297,11.1604,1632.1,1631.9,4.43304]
[1745248716498,6.1604,1632.1,1631.9,4.8803]
[1745248716698,1.22529,1631.9,1631.8,0.00921687]
[1745248716896,9.16709,1631.9,1631.8,0.00921687]
[1745248717210,6.146,1631.9,1631.8,0.00921687]
[1745248717401,6.146,1631.9,1631.8,1.23458687]